[Event "USA Championship 2024"]
[Site "Saint Louis"]
[Date "2024.10.16"]
[Round "5.6"]
[White "Robson, Ray"]
[Black "Dominguez Perez, Leinier"]
[Result "1-0"]
[ECO "D45"]
[WhiteElo "2693"]
[BlackElo "2741"]
[Annotator "TA"]
[PlyCount "115"]
[EventDate "2024.10.09"]
[EventType "tourn"]
[EventCountry "USA"]
[SourceTitle "playchess.com"]
[Source "ChessBase"]
[SourceQuality "1"]
[TimeControl "40/5400+30:1800+30"]

{[%evp 34,115,7,0,0,0,0,5,8,0,0,0,0,0,0,0,0,0,0,0,0,0,0,0,0,0,0,0,0,0,0,0,0,0,0,0,37,36,40,39,59,47,105,105,97,97,187,179,168,162,228,229,227,214,212,215,208,200,375,360,456,441,803,278,29952,29960,29960,29959,29975,29968,29975,29975,29980,29977,29984,29966,29985,29985,29988,29989,29991,29991,29994,215]} 1. d4 {[%emt 0:00:11]} d5 {[%emt 0:00:22]} 2. c4 {[%emt 0:00:18]} dxc4 {[%emt 0:00:10]} 3. Nf3 {[%emt 0:06:03]} Nf6 {[%emt 0:00:10]} 4. e3 {[%emt 0:00:04]} e6 {[%emt 0:00:14]} 5. Bxc4 {[%emt 0:00:08]} c5 {[%emt 0:00:06]} 6. O-O {[%emt 0:00:25]} Be7 {[%emt 0:00:10]} 7. Nc3 {[%emt 0:20:45]} O-O {[%emt 0:00:40]} 8. e4 {[%emt 0:03:13] D45: Semi-Slav: 5 e3.} cxd4 {[%emt 0:00:07]} 9. Nxd4 {[%emt 0:04:22]} Qc7 {[%emt 0:00:21]} 10. Qe2 {[%emt 0:04:46]} Nc6 {[%emt 0:00:21]} 11. Nf3 {[%emt 0:11:37]} Ng4 {[%emt 0:05:45]} 12. g3 $146 {[%emt 0:08:08]} ({Predecessor:} 12. Nb5 Qb8 13. h3 Nge5 14. Nxe5 Nxe5 15. Bb3 a6 16. Nc3 Nc6 17. Rd1 b5 18. Be3 {1-0 Knezevic,M (2500)-Mestrovic,Z (2465) Yugoslavia  1979}) 12... a6 {[%emt 0:40:13]} 13. Bf4 {[%emt 0:02:13]} Bd6 {[%emt 0:02:48]} 14. Bxd6 {[%emt 0:01:34]} Qxd6 {[%emt 0:00:18]} 15. Rfd1 {[%emt 0:01:08]} Qc7 {[%emt 0:00:19]} 16. Rac1 {[%emt 0:02:37]} Bd7 {[%emt 0:02:51]} 17. Bb3 {[%emt 0:06:59]} Rfd8 {[%emt 0:03:00]} 18. Ng5 {[%emt 0:04:04]} Nf6 {[%emt 0:14:14]} 19. f4 {[%emt 0:00:47]} h6 {[%emt 0:02:41]} 20. Nf3 $1 {[%emt 0:03:51]} Qb6+ {[%emt 0:00:40]} 21. Qf2 {[%emt 0:08:05]} Qb4 $1 {[%emt 0:02:18]} 22. Qe2 $1 {[%emt 0:01:01]} Qb6+ {[%emt 0:08:13]} 23. Qf2 {[%emt 0:00:02]} Qb4 $1 {[%emt 0:00:06]} 24. Qe2 $1 {[%emt 0:00:05]} Na5 {[%emt 0:05:14]} 25. e5 {[%emt 0:02:38]} Nxb3 {[%emt 0:00:15]} 26. axb3 {[%emt 0:00:08]} Ne8 {[%emt 0:00:18]} 27. Nd4 {[%emt 0:02:22]} Bc6 {[%emt 0:01:50]} 28. Nxc6 {[%emt 0:02:29]} bxc6 {[%emt 0:00:02]} 29. Qc4 {[%emt 0:00:56]} Qb6+ {[%emt 0:00:39]} 30. Kg2 {[%emt 0:00:35]} Nc7 {[%emt 0:00:58]} 31. Rd6 {[%emt 0:00:55]} Rab8 {[%emt 0:05:20]} 32. Qxc6 {[%emt 0:01:36]} (32. Rxc6 $2 Rd2+ (32... Qxb3 $2 33. Qxb3 Rxb3 34. Rxc7 $18) 33. Ne2 (33. Kh3 $2 Qf2 $19) 33... Qe3 $19 (33... Qxb3 34. Qxb3 Rxb3 35. R1c2 $15)) 32... Rxd6 {[%emt 0:01:21]} 33. Qxd6 {[%emt 0:00:03]} Qb7+ {[%emt 0:00:11]} 34. Kh3 {[%emt 0:00:57]} Ne8 {[%emt 0:01:48]} 35. Qd3 {[%emt 0:01:25]} Qxb3 {[%emt 0:03:15]} 36. Qxa6 {[%emt 0:00:14]} Nc7 {[%emt 0:00:38]} 37. Qd6 {[%emt 0:01:42]} Nd5 {[%emt 0:00:32]} (37... Qc4 $14) 38. Nxd5 $16 {[%emt 0:00:29]} exd5 {[%emt 0:00:01]} 39. e6 {[%emt 0:00:33]} fxe6 {[%emt 0:00:41]} (39... Qxb2 $16 {keeps fighting.} 40. e7 Re8) 40. Qxe6+ $18 {[%emt 0:00:25]} Kh8 {[%emt 0:00:24]} 41. Qe5 $1 {[%emt 0:04:15]} Qb6 {[%emt 0:04:26] [#]} (41... Qb5 {was necessary.}) 42. Rc7 $1 $18 {[%emt 0:02:15]} (42. Qxd5 Qxb2 43. Re1 Qc2 $11) 42... Rg8 {[%emt 0:04:52] [#]} 43. Rd7 $1 {[%emt 0:00:54]} Qa6 {[%emt 0:02:24]} 44. Rxd5 {[%emt 0:02:22]} (44. Qxd5 Qf1+ 45. Kh4 (45. Qg2 Qc4 $16) 45... Qe2) 44... Qc8+ {[%emt 0:03:01]} 45. Kh4 {[%emt 0:09:21]} Qc2 $2 {[%emt 0:06:19]} (45... Re8 46. Qh5 Re3) 46. h3 $18 {[%emt 0:01:08]} Kh7 {[%emt 0:01:01]} 47. Rd7 {[%emt 0:01:41]} ({Stronger than} 47. Qf5+ Qxf5 48. Rxf5 Rb8 $11) 47... Qb3 {[%emt 0:02:14]} (47... Qc6 $142 48. Qf5+ Qg6 49. Qxg6+ Kxg6 50. Rd6+ Kf7) 48. Re7 $2 {[%emt 0:01:25]} (48. g4 Qa4 49. Re7) 48... Qb6 $2 {[%emt 0:01:37]} (48... Qb4 $18 49. Kh5 Kh8) 49. f5 {[%emt 0:02:29]} Kh8 {[%emt 0:07:24]} 50. Kh5 {[%emt 0:04:13]} Qc6 {[%emt 0:00:50]} 51. b4 {[%emt 0:01:53]} Qf3+ {[%emt 0:01:31]} 52. Kh4 {[%emt 0:00:37]} Qd1 {[%emt 0:00:18]} 53. b5 {[%emt 0:00:29]} Qa4+ {[%emt 0:00:30]} 54. g4 {[%emt 0:00:47]} Qc2 {[%emt 0:00:04]} 55. b6 {[%emt 0:01:31]} Qf2+ {[%emt 0:00:23]} 56. Kh5 {[%emt 0:00:13]} Kh7 {[%emt 0:01:28]} 57. f6 {[%emt 0:01:37]} Qxb6 {[%emt 0:00:29]} 58. Qf5+ {[%emt 0:00:23]} ({Weaker is} 58. fxg7 Qg6+ 59. Kh4 Rxg7 $14) 1-0